[Event "Early-Titled-Tuesday-Blitz-March-05-2024"]
[Site "Chess.com"]
[Date "2024.03.05"]
[Round "1"]
[White "unagi64"]
[Black "HanSchut"]
[Result "1-0"]
[WhiteElo "2612"]
[BlackElo "2306"]
[TimeControl "180+1"]
[EndTime "8:06:56 PST"]
[Termination "unagi64 won by resignation"]

1. c4 {[%clk 0:03:00.9]} 1... Nf6 {[%clk 0:02:59.4]} 2. g3 {[%clk 0:02:58.4]}
2... g6 {[%clk 0:02:59.6]} 3. Bg2 {[%clk 0:02:58.7]} 3... d5 {[%clk 0:03:00.1]}
4. cxd5 {[%clk 0:02:57.9]} 4... Nxd5 {[%clk 0:03:00.6]} 5. Nc3 {[%clk
0:02:58.5]} 5... Nb6 {[%clk 0:02:59.3]} 6. d3 {[%clk 0:02:58.6]} 6... Bg7 {[%clk
0:02:59.3]} 7. Be3 {[%clk 0:02:59.3]} 7... O-O {[%clk 0:02:58.8]} 8. Qd2 {[%clk
0:03:00]} 8... Re8 {[%clk 0:02:47.5]} 9. Bh6 {[%clk 0:02:59.6]} 9... Bh8 {[%clk
0:02:44.9]} 10. h4 {[%clk 0:03:00.1]} 10... c5 {[%clk 0:02:38.1]} 11. h5 {[%clk
0:02:59.8]} 11... c4 {[%clk 0:02:36.2]} 12. hxg6 {[%clk 0:02:59]} 12... fxg6
{[%clk 0:02:25.5]} 13. Bf4 {[%clk 0:02:25.1]} 13... cxd3 {[%clk 0:02:21.4]} 14.
Bxb8 {[%clk 0:02:24.3]} 14... Rxb8 {[%clk 0:02:13.6]} 15. Qh6 {[%clk 0:02:23.9]}
15... d2+ {[%clk 0:01:58.8]} 16. Qxd2 {[%clk 0:02:08.8]} 16... Qxd2+ {[%clk
0:01:58]} 17. Kxd2 {[%clk 0:02:09]} 17... Nc4+ {[%clk 0:01:54.9]} 18. Kc2 {[%clk
0:02:06.9]} 18... Bf5+ {[%clk 0:01:54.8]} 19. e4 {[%clk 0:02:06.3]} 19... Be6
{[%clk 0:01:51.3]} 20. Nge2 {[%clk 0:02:05.5]} 20... Rbc8 {[%clk 0:01:41.6]} 21.
Rad1 {[%clk 0:02:01]} 21... b5 {[%clk 0:01:41.4]} 22. Kb1 {[%clk 0:01:58.7]}
22... b4 {[%clk 0:01:41.5]} 23. Na4 {[%clk 0:01:53.1]} 23... Red8 {[%clk
0:01:33.4]} 24. Nf4 {[%clk 0:01:41.4]} 24... Bf7 {[%clk 0:01:25.4]} 25. Bh3
{[%clk 0:01:33.8]} 25... Rb8 {[%clk 0:00:50]} 26. Be6 {[%clk 0:01:33.1]} 26...
Nd2+ {[%clk 0:00:44]} 27. Ka1 {[%clk 0:01:06.8]} 27... Nxe4 {[%clk 0:00:43.8]}
28. Bxf7+ {[%clk 0:01:06.3]} 28... Kxf7 {[%clk 0:00:44.4]} 29. Rxh7+ {[%clk
0:01:05.4]} 29... Kg8 {[%clk 0:00:40.8]} 30. Rxd8+ {[%clk 0:00:55.1]} 30... Rxd8
{[%clk 0:00:39.9]} 31. Rh1 {[%clk 0:00:56]} 31... Nxf2 {[%clk 0:00:37.3]} 32.
Rf1 {[%clk 0:00:56]} 32... Rd2 {[%clk 0:00:33.5]} 33. Nxg6 {[%clk 0:00:54.4]}
33... Bf6 {[%clk 0:00:26.1]} 34. Nf4 {[%clk 0:00:52.9]} 34... Nd3 {[%clk
0:00:23.3]} 35. Nxd3 {[%clk 0:00:52]} 35... Rxd3 {[%clk 0:00:24.2]} 36. Kb1
{[%clk 0:00:48.8]} 36... Rxg3 {[%clk 0:00:23.3]} 37. Rf2 {[%clk 0:00:46.1]}
37... Kg7 {[%clk 0:00:20.5]} 38. Kc2 {[%clk 0:00:45.3]} 38... e5 {[%clk
0:00:20.6]} 39. Nc5 {[%clk 0:00:45.3]} 39... Rg4 {[%clk 0:00:15.6]} 40. Kb3
{[%clk 0:00:40.1]} 40... Rf4 {[%clk 0:00:15.8]} 41. Ne6+ {[%clk 0:00:36.5]} 1-0

[Event "Early-Titled-Tuesday-Blitz-March-05-2024"]
[Site "Chess.com"]
[Date "2024.03.05"]
[Round "1"]
[White "deepfear"]
[Black "sakkikuska"]
[Result "0-1"]
[WhiteElo "1969"]
[BlackElo "2531"]
[TimeControl "180+1"]
[EndTime "8:06:56 PST"]
[Termination "sakkikuska won on time"]

1. e4 {[%clk 0:02:56.6]} 1... c5 {[%clk 0:02:59.8]} 2. Nc3 {[%clk 0:02:55.5]}
2... Nc6 {[%clk 0:02:54.9]} 3. f4 {[%clk 0:02:54.9]} 3... g6 {[%clk 0:02:49.7]}
4. Nf3 {[%clk 0:02:54.5]} 4... Bg7 {[%clk 0:02:49.6]} 5. Bc4 {[%clk 0:02:54.4]}
5... e6 {[%clk 0:02:49.5]} 6. f5 {[%clk 0:02:40.5]} 6... Nge7 {[%clk 0:02:49.5]}
7. fxe6 {[%clk 0:02:40.3]} 7... fxe6 {[%clk 0:02:50.4]} 8. d3 {[%clk 0:02:34.6]}
8... O-O {[%clk 0:02:45.9]} 9. O-O {[%clk 0:02:34.3]} 9... d5 {[%clk 0:02:38.7]}
10. Bb5 {[%clk 0:02:22.9]} 10... Nd4 {[%clk 0:02:33.7]} 11. Ba4 {[%clk 0:01:42]}
11... a6 {[%clk 0:01:59]} 12. Bb3 {[%clk 0:01:41.6]} 12... b5 {[%clk 0:01:36.2]}
13. exd5 {[%clk 0:01:26.3]} 13... exd5 {[%clk 0:01:31.5]} 14. a4 {[%clk
0:01:13.8]} 14... Nxf3+ {[%clk 0:01:12]} 15. Rxf3 {[%clk 0:01:11.1]} 15... c4
{[%clk 0:00:55.3]} 16. dxc4 {[%clk 0:00:53.1]} 16... bxc4 {[%clk 0:00:34.9]} 17.
Ba2 {[%clk 0:00:49.8]} 17... Bb7 {[%clk 0:00:31.7]} 18. Bg5 {[%clk 0:00:40.9]}
18... Rxf3 {[%clk 0:00:18.4]} 19. Qxf3 {[%clk 0:00:34.3]} 19... Qb6+ {[%clk
0:00:18.8]} 20. Kh1 {[%clk 0:00:19.4]} 20... Qxb2 {[%clk 0:00:06.3]} 21. Rf1
{[%clk 0:00:17.1]} 21... Rf8 {[%clk 0:00:05.1]} 22. Bxe7 {[%clk 0:00:04.6]}
22... Rxf3 {[%clk 0:00:04.7]} 0-1

[Event "Early-Titled-Tuesday-Blitz-March-05-2024"]
[Site "Chess.com"]
[Date "2024.03.05"]
[Round "1"]
[White "LiamPutnam2008"]
[Black "N4700000"]
[Result "1/2-1/2"]
[WhiteElo "2912"]
[BlackElo "2499"]
[TimeControl "180+1"]
[EndTime "8:06:57 PST"]
[Termination "Game drawn by repetition"]

1. e4 {[%clk 0:02:59.7]} 1... c5 {[%clk 0:02:59.1]} 2. Nf3 {[%clk 0:02:55.4]}
2... d6 {[%clk 0:02:59.4]} 3. d4 {[%clk 0:02:55.3]} 3... cxd4 {[%clk 0:02:59.3]}
4. Nxd4 {[%clk 0:02:56.2]} 4... Nf6 {[%clk 0:02:59.3]} 5. Nc3 {[%clk 0:02:56.1]}
5... g6 {[%clk 0:02:59.7]} 6. Be3 {[%clk 0:02:52.6]} 6... Bg7 {[%clk 0:03:00.1]}
7. f3 {[%clk 0:02:52.6]} 7... O-O {[%clk 0:03:00.1]} 8. Qd2 {[%clk 0:02:53.3]}
8... Nc6 {[%clk 0:02:59.9]} 9. O-O-O {[%clk 0:02:53.4]} 9... Bd7 {[%clk
0:02:58.1]} 10. g4 {[%clk 0:02:37.6]} 10... Ne5 {[%clk 0:02:55.2]} 11. Bh6
{[%clk 0:02:32.8]} 11... Bxh6 {[%clk 0:02:45.5]} 12. Qxh6 {[%clk 0:02:32.6]}
12... Rc8 {[%clk 0:02:44.7]} 13. h4 {[%clk 0:02:23.1]} 13... Rxc3 {[%clk
0:02:36.3]} 14. bxc3 {[%clk 0:02:24]} 14... Qa5 {[%clk 0:02:36]} 15. Kb2 {[%clk
0:01:31.8]} 15... Rc8 {[%clk 0:02:28.2]} 16. Qe3 {[%clk 0:01:29.1]} 16... Qb6+
{[%clk 0:01:44.7]} 17. Ka1 {[%clk 0:01:09.7]} 17... Qa5 {[%clk 0:01:44.8]} 18.
Kb2 {[%clk 0:00:48.6]} 18... Qb6+ {[%clk 0:01:42.3]} 19. Ka1 {[%clk 0:00:46.8]}
19... Qa5 {[%clk 0:01:42.4]} 20. h5 {[%clk 0:00:37.9]} 20... Rxc3 {[%clk
0:01:33.5]} 21. Qd2 {[%clk 0:00:36.6]} 21... Nxf3 {[%clk 0:01:05.8]} 22. Qc1
{[%clk 0:00:18.3]} 22... Ra3 {[%clk 0:00:47.4]} 23. Qb2 {[%clk 0:00:09.6]} 23...
Nxd4 {[%clk 0:00:43.6]} 24. Rxd4 {[%clk 0:00:09.5]} 24... Qe1+ {[%clk
0:00:20.5]} 25. Qb1 {[%clk 0:00:09.8]} 25... Qc3+ {[%clk 0:00:19.8]} 26. Qb2
{[%clk 0:00:10.2]} 26... Qe1+ {[%clk 0:00:08.7]} 27. Qb1 {[%clk 0:00:10.6]}
27... Qc3+ {[%clk 0:00:07.7]} 28. Qb2 {[%clk 0:00:11]} 28... Qe1+ {[%clk
0:00:05.6]} 1/2-1/2

[Event "Early-Titled-Tuesday-Blitz-March-05-2024"]
[Site "Chess.com"]
[Date "2024.03.05"]
[Round "1"]
[White "Eagle_2019"]
[Black "Misterfox120"]
[Result "1-0"]
[WhiteElo "2866"]
[BlackElo "2473"]
[TimeControl "180+1"]
[EndTime "8:07:00 PST"]
[Termination "Eagle_2019 won by resignation"]

1. Nf3 {[%clk 0:03:00.9]} 1... c5 {[%clk 0:02:58.8]} 2. c4 {[%clk 0:03:00.3]}
2... Nc6 {[%clk 0:02:58.2]} 3. Nc3 {[%clk 0:03:00.4]} 3... e5 {[%clk 0:02:57.8]}
4. e3 {[%clk 0:02:59.7]} 4... Nf6 {[%clk 0:02:58.1]} 5. d4 {[%clk 0:02:59.7]}
5... e4 {[%clk 0:02:58.5]} 6. d5 {[%clk 0:02:55]} 6... exf3 {[%clk 0:02:58.1]}
7. dxc6 {[%clk 0:02:55]} 7... dxc6 {[%clk 0:02:59]} 8. Qxd8+ {[%clk 0:02:53.7]}
8... Kxd8 {[%clk 0:02:58.6]} 9. gxf3 {[%clk 0:02:54]} 9... g6 {[%clk 0:02:52.6]}
10. b3 {[%clk 0:02:53.7]} 10... Bg7 {[%clk 0:02:52.5]} 11. Bb2 {[%clk
0:02:53.7]} 11... Bf5 {[%clk 0:02:28.8]} 12. O-O-O+ {[%clk 0:02:51.2]} 12... Kc7
{[%clk 0:02:27.8]} 13. Be2 {[%clk 0:02:39]} 13... Rhd8 {[%clk 0:02:26.5]} 14.
Na4 {[%clk 0:02:38.3]} 14... b6 {[%clk 0:02:22]} 15. Be5+ {[%clk 0:02:37.6]}
15... Kb7 {[%clk 0:02:17.2]} 16. Nc3 {[%clk 0:02:23.2]} 16... Nh5 {[%clk
0:02:08.5]} 17. Bxg7 {[%clk 0:02:21.1]} 17... Nxg7 {[%clk 0:02:09.4]} 18. f4
{[%clk 0:02:20]} 18... h5 {[%clk 0:01:57.2]} 19. Bf3 {[%clk 0:02:16.2]} 19...
Kc7 {[%clk 0:01:42.8]} 20. Ne4 {[%clk 0:01:52.6]} 20... Bxe4 {[%clk 0:01:30.3]}
21. Bxe4 {[%clk 0:01:53.5]} 21... Rxd1+ {[%clk 0:01:25.8]} 22. Rxd1 {[%clk
0:01:52.8]} 22... Rd8 {[%clk 0:01:26.7]} 23. Rxd8 {[%clk 0:01:43]} 23... Kxd8
{[%clk 0:01:27.6]} 24. Bxc6 {[%clk 0:01:43]} 24... Ke7 {[%clk 0:01:27.2]} 25.
Kd2 {[%clk 0:01:40.7]} 25... Kf6 {[%clk 0:01:26.3]} 26. Bd5 {[%clk 0:01:38.8]}
26... Ne8 {[%clk 0:01:22.8]} 27. e4 {[%clk 0:01:35]} 27... Ke7 {[%clk
0:01:18.4]} 28. Ke3 {[%clk 0:01:32.4]} 28... Nd6 {[%clk 0:01:18.8]} 29. Kf3
{[%clk 0:00:31.3]} 29... f6 {[%clk 0:00:55.6]} 30. Kg3 {[%clk 0:00:30.2]} 30...
Ne8 {[%clk 0:00:55.2]} 31. Kh4 {[%clk 0:00:28.7]} 31... Ng7 {[%clk 0:00:55.9]}
32. Bg8 {[%clk 0:00:24.2]} 32... Kf8 {[%clk 0:00:52.2]} 33. Bh7 {[%clk 0:00:19]}
33... Kf7 {[%clk 0:00:52.7]} 34. f5 {[%clk 0:00:18.3]} 34... g5+ {[%clk
0:00:51.8]} 35. Kg3 {[%clk 0:00:18.4]} 35... Ke7 {[%clk 0:00:50.7]} 36. f4
{[%clk 0:00:17.4]} 36... Kd6 {[%clk 0:00:46.1]} 37. e5+ {[%clk 0:00:15]} 37...
fxe5 {[%clk 0:00:45.2]} 38. fxg5 {[%clk 0:00:14]} 38... e4 {[%clk 0:00:41.5]}
39. f6 {[%clk 0:00:11.3]} 39... Ne6 {[%clk 0:00:41.9]} 40. g6 {[%clk 0:00:10.3]}
40... Ke5 {[%clk 0:00:38.3]} 41. g7 {[%clk 0:00:09.1]} 1-0

[Event "Early-Titled-Tuesday-Blitz-March-05-2024"]
[Site "Chess.com"]
[Date "2024.03.05"]
[Round "1"]
[White "ikhasu"]
[Black "ChessSwole"]
[Result "1-0"]
[WhiteElo "2437"]
[BlackElo "2697"]
[TimeControl "180+1"]
[EndTime "8:07:01 PST"]
[Termination "ikhasu won by resignation"]

1. d4 {[%clk 0:03:00.9]} 1... Nf6 {[%clk 0:02:59.5]} 2. Nf3 {[%clk 0:03:00.5]}
2... g6 {[%clk 0:02:59.1]} 3. b3 {[%clk 0:02:59.9]} 3... Bg7 {[%clk 0:02:59.1]}
4. Bb2 {[%clk 0:03:00.5]} 4... O-O {[%clk 0:02:59.5]} 5. Nbd2 {[%clk 0:02:58.5]}
5... c5 {[%clk 0:02:59.6]} 6. e3 {[%clk 0:02:55.5]} 6... b6 {[%clk 0:02:55.3]}
7. Bd3 {[%clk 0:02:54.9]} 7... Bb7 {[%clk 0:02:54.8]} 8. O-O {[%clk 0:02:55]}
8... d6 {[%clk 0:02:52.4]} 9. Qe2 {[%clk 0:02:55]} 9... Nbd7 {[%clk 0:02:49.5]}
10. Rad1 {[%clk 0:02:52]} 10... Re8 {[%clk 0:02:41.6]} 11. c4 {[%clk 0:02:48.4]}
11... cxd4 {[%clk 0:02:41.7]} 12. exd4 {[%clk 0:02:47.2]} 12... d5 {[%clk
0:02:39.5]} 13. Rfe1 {[%clk 0:02:44.6]} 13... e6 {[%clk 0:02:32.2]} 14. Ne5
{[%clk 0:02:44.1]} 14... Nh5 {[%clk 0:02:17.7]} 15. Qf3 {[%clk 0:02:36.4]} 15...
Rb8 {[%clk 0:02:08.4]} 16. Qxf7+ {[%clk 0:02:31.5]} 16... Kh8 {[%clk 0:02:06.9]}
17. Qxd7 {[%clk 0:02:12.9]} 17... Qf6 {[%clk 0:02:00.2]} 18. Ndf3 {[%clk
0:02:05.6]} 18... Re7 {[%clk 0:01:53.1]} 19. Qd6 {[%clk 0:01:58.5]} 19... Rc8
{[%clk 0:01:29.5]} 20. Bc1 {[%clk 0:01:43.9]} 20... Qf8 {[%clk 0:01:07]} 21. Bg5
{[%clk 0:01:38.6]} 21... Bf6 {[%clk 0:01:06.6]} 22. Bxg6 {[%clk 0:01:03.6]}
22... Ng7 {[%clk 0:00:43.8]} 23. Bxf6 {[%clk 0:00:38.9]} 23... Qxf6 {[%clk
0:00:44.7]} 24. Nd7 {[%clk 0:00:33.4]} 24... Qxg6 {[%clk 0:00:26.3]} 25. Qxe7
{[%clk 0:00:33.5]} 25... dxc4 {[%clk 0:00:26.7]} 26. Nde5 {[%clk 0:00:32.9]}
26... Qf5 {[%clk 0:00:21]} 27. Qxb7 {[%clk 0:00:32.5]} 27... Rf8 {[%clk
0:00:21.6]} 28. bxc4 {[%clk 0:00:31.5]} 28... Nh5 {[%clk 0:00:21.7]} 29. Qe4
{[%clk 0:00:28.6]} 29... Qf6 {[%clk 0:00:19.4]} 30. d5 {[%clk 0:00:28.2]} 30...
exd5 {[%clk 0:00:18.9]} 31. cxd5 {[%clk 0:00:27.4]} 31... Nf4 {[%clk 0:00:19.6]}
32. g3 {[%clk 0:00:26.2]} 32... Rg8 {[%clk 0:00:15.1]} 33. d6 {[%clk 0:00:24.8]}
33... Qh6 {[%clk 0:00:12.4]} 34. Nf7+ {[%clk 0:00:22.7]} 1-0

[Event "Early-Titled-Tuesday-Blitz-March-05-2024"]
[Site "Chess.com"]
[Date "2024.03.05"]
[Round "1"]
[White "shirovin"]
[Black "ivanquiroga"]
[Result "0-1"]
[WhiteElo "2062"]
[BlackElo "2539"]
[TimeControl "180+1"]
[EndTime "8:07:01 PST"]
[Termination "ivanquiroga won on time"]

1. e4 {[%clk 0:03:00.9]} 1... e5 {[%clk 0:02:58]} 2. Nf3 {[%clk 0:03:00]} 2...
Nc6 {[%clk 0:02:57.8]} 3. Bb5 {[%clk 0:02:58.9]} 3... a6 {[%clk 0:02:57.1]} 4.
Ba4 {[%clk 0:02:58.1]} 4... Nf6 {[%clk 0:02:57]} 5. O-O {[%clk 0:02:56.9]} 5...
d6 {[%clk 0:02:57.3]} 6. Re1 {[%clk 0:02:52.4]} 6... Bd7 {[%clk 0:02:57.4]} 7.
c3 {[%clk 0:02:26]} 7... g6 {[%clk 0:02:57]} 8. d4 {[%clk 0:02:24.3]} 8... Bg7
{[%clk 0:02:57.1]} 9. Bg5 {[%clk 0:02:13.2]} 9... O-O {[%clk 0:02:55.4]} 10.
Nbd2 {[%clk 0:02:08.5]} 10... h6 {[%clk 0:02:54.9]} 11. Bh4 {[%clk 0:02:07.6]}
11... b5 {[%clk 0:02:44.6]} 12. Bc2 {[%clk 0:02:00]} 12... g5 {[%clk 0:02:42.9]}
13. Bg3 {[%clk 0:01:58.9]} 13... exd4 {[%clk 0:02:39.3]} 14. cxd4 {[%clk
0:01:56.7]} 14... Nh5 {[%clk 0:02:39.4]} 15. d5 {[%clk 0:01:51.7]} 15... Ne7
{[%clk 0:02:31.7]} 16. Rb1 {[%clk 0:01:45.8]} 16... Nxg3 {[%clk 0:02:30]} 17.
hxg3 {[%clk 0:01:44.7]} 17... Ng6 {[%clk 0:02:28.7]} 18. Nf1 {[%clk 0:01:40]}
18... g4 {[%clk 0:02:16.2]} 19. N3d2 {[%clk 0:01:36.4]} 19... Qg5 {[%clk
0:02:14.8]} 20. Ne3 {[%clk 0:01:23.7]} 20... h5 {[%clk 0:02:13.6]} 21. Nf5
{[%clk 0:01:22.1]} 21... Ne7 {[%clk 0:02:13]} 22. Nxe7+ {[%clk 0:01:12]} 22...
Qxe7 {[%clk 0:02:12.6]} 23. Nf1 {[%clk 0:01:12.2]} 23... h4 {[%clk 0:02:06.6]}
24. Qd3 {[%clk 0:01:07.3]} 24... Be5 {[%clk 0:02:04.9]} 25. gxh4 {[%clk
0:01:01.9]} 25... Qxh4 {[%clk 0:02:04.2]} 26. g3 {[%clk 0:01:02.2]} 26... Qh5
{[%clk 0:01:49.8]} 27. Ne3 {[%clk 0:01:00.3]} 27... Kg7 {[%clk 0:01:33.8]} 28.
Kf1 {[%clk 0:00:53.9]} 28... Qh1+ {[%clk 0:01:30.1]} 29. Ke2 {[%clk 0:00:53.3]}
29... Qf3+ {[%clk 0:01:30.2]} 30. Kd2 {[%clk 0:00:52.8]} 30... Rh8 {[%clk
0:01:13.3]} 31. Rf1 {[%clk 0:00:40.6]} 31... Rh2 {[%clk 0:01:11.2]} 32. Qe2
{[%clk 0:00:37.7]} 32... c5 {[%clk 0:01:02.5]} 33. Qxf3 {[%clk 0:00:35.8]} 33...
gxf3 {[%clk 0:01:03.4]} 34. Nf5+ {[%clk 0:00:33]} 34... Bxf5 {[%clk 0:01:02.7]}
35. exf5 {[%clk 0:00:31.5]} 35... Bxg3 {[%clk 0:01:02.2]} 36. Ke3 {[%clk
0:00:30.1]} 36... Be5 {[%clk 0:00:49.1]} 37. Kxf3 {[%clk 0:00:28.4]} 37... Rah8
{[%clk 0:00:48.8]} 38. Rg1+ {[%clk 0:00:27.4]} 38... Kf6 {[%clk 0:00:49.4]} 39.
Rg2 {[%clk 0:00:25.9]} 39... R8h3+ {[%clk 0:00:48.2]} 40. Rg3 {[%clk 0:00:19.7]}
40... Bxg3 {[%clk 0:00:47.5]} 41. fxg3 {[%clk 0:00:20.1]} 41... Rxc2 {[%clk
0:00:47.9]} 42. Kg4 {[%clk 0:00:18.2]} 42... Rhh2 {[%clk 0:00:46]} 43. b3 {[%clk
0:00:16]} 43... Rxa2 {[%clk 0:00:45.6]} 0-1

[Event "Early-Titled-Tuesday-Blitz-March-05-2024"]
[Site "Chess.com"]
[Date "2024.03.05"]
[Round "1"]
[White "MdChess1734"]
[Black "littlepinkyboy"]
[Result "0-1"]
[WhiteElo "2390"]
[BlackElo "2692"]
[TimeControl "180+1"]
[EndTime "8:07:03 PST"]
[Termination "littlepinkyboy won on time"]

1. e4 {[%clk 0:03:00.9]} 1... c5 {[%clk 0:02:58.6]} 2. Nf3 {[%clk 0:02:59.9]}
2... e6 {[%clk 0:02:57.7]} 3. d4 {[%clk 0:02:58.6]} 3... cxd4 {[%clk 0:02:58.6]}
4. Nxd4 {[%clk 0:02:57.2]} 4... Nc6 {[%clk 0:02:59.1]} 5. Nxc6 {[%clk
0:02:41.1]} 5... bxc6 {[%clk 0:02:56.5]} 6. Bd3 {[%clk 0:02:40]} 6... d5 {[%clk
0:02:55.6]} 7. c4 {[%clk 0:02:36]} 7... Nf6 {[%clk 0:02:44.2]} 8. Nc3 {[%clk
0:01:59.5]} 8... Bb4 {[%clk 0:02:00.8]} 9. cxd5 {[%clk 0:01:19.6]} 9... exd5
{[%clk 0:01:49.5]} 10. exd5 {[%clk 0:01:14.8]} 10... Nxd5 {[%clk 0:01:41.7]} 11.
O-O {[%clk 0:00:54.9]} 11... Nxc3 {[%clk 0:01:19.7]} 12. Qe1+ {[%clk 0:00:37.4]}
12... Be6 {[%clk 0:01:18.4]} 13. bxc3 {[%clk 0:00:37.9]} 13... Be7 {[%clk
0:01:19]} 14. Be4 {[%clk 0:00:37.2]} 14... O-O {[%clk 0:01:16.5]} 15. Qe2 {[%clk
0:00:31.9]} 15... Bf6 {[%clk 0:01:14.2]} 16. Be3 {[%clk 0:00:26.3]} 16... Rc8
{[%clk 0:01:08.9]} 17. Rac1 {[%clk 0:00:25.3]} 17... Qa5 {[%clk 0:01:09.1]} 18.
Rc2 {[%clk 0:00:25.3]} 18... Rfe8 {[%clk 0:01:08.1]} 19. Qf3 {[%clk 0:00:20.1]}
19... Bd5 {[%clk 0:01:01.2]} 20. Bxd5 {[%clk 0:00:17.3]} 20... cxd5 {[%clk
0:01:02.1]} 21. Rfc1 {[%clk 0:00:16.6]} 21... d4 {[%clk 0:00:58.2]} 22. Bd2
{[%clk 0:00:04.4]} 22... dxc3 {[%clk 0:00:58.4]} 23. Be3 {[%clk 0:00:05]} 23...
Qa4 {[%clk 0:00:56.3]} 24. h3 {[%clk 0:00:04.1]} 24... Rb8 {[%clk 0:00:52.4]}
25. g4 {[%clk 0:00:04.1]} 25... Rb2 {[%clk 0:00:52]} 26. Qf5 {[%clk 0:00:03.6]}
26... Qxa2 {[%clk 0:00:47.7]} 27. g5 {[%clk 0:00:03.1]} 27... Rxc2 {[%clk
0:00:47.6]} 28. Rxc2 {[%clk 0:00:03.1]} 28... Qb1+ {[%clk 0:00:48.2]} 29. Kg2
{[%clk 0:00:03]} 29... Be5 {[%clk 0:00:45.9]} 30. Qd7 {[%clk 0:00:02.8]} 30...
Rf8 {[%clk 0:00:45.6]} 31. Qd3 {[%clk 0:00:02.6]} 31... Qb7+ {[%clk 0:00:45]}
32. f3 {[%clk 0:00:02]} 32... a5 {[%clk 0:00:42.8]} 33. Qf5 {[%clk 0:00:02.1]}
33... f6 {[%clk 0:00:38.3]} 0-1

[Event "Early-Titled-Tuesday-Blitz-March-05-2024"]
[Site "Chess.com"]
[Date "2024.03.05"]
[Round "1"]
[White "Salem-AR"]
[Black "noblerone"]
[Result "1-0"]
[WhiteElo "3030"]
[BlackElo "2513"]
[TimeControl "180+1"]
[EndTime "8:07:04 PST"]
[Termination "Salem-AR won on time"]

1. d4 {[%clk 0:02:57.1]} 1... d5 {[%clk 0:02:56.6]} 2. Nf3 {[%clk 0:02:57.6]}
2... Nf6 {[%clk 0:02:55.7]} 3. Bf4 {[%clk 0:02:57.9]} 3... e6 {[%clk 0:02:53.8]}
4. e3 {[%clk 0:02:57.4]} 4... c5 {[%clk 0:02:54.1]} 5. c3 {[%clk 0:02:57.4]}
5... Bd6 {[%clk 0:02:54.1]} 6. Nbd2 {[%clk 0:02:57.2]} 6... O-O {[%clk
0:02:54.6]} 7. Bd3 {[%clk 0:02:52.4]} 7... b6 {[%clk 0:02:37.8]} 8. Qe2 {[%clk
0:02:52.2]} 8... Qc7 {[%clk 0:02:31.2]} 9. Bxd6 {[%clk 0:02:49.2]} 9... Qxd6
{[%clk 0:02:31.2]} 10. Ne5 {[%clk 0:02:50]} 10... Nbd7 {[%clk 0:02:20.6]} 11. f4
{[%clk 0:02:49.5]} 11... Bb7 {[%clk 0:02:16.4]} 12. Rd1 {[%clk 0:02:47.2]} 12...
Qe7 {[%clk 0:02:12.9]} 13. O-O {[%clk 0:02:41.2]} 13... Rad8 {[%clk 0:01:59.7]}
14. Qf3 {[%clk 0:02:35.1]} 14... Ne8 {[%clk 0:01:51.1]} 15. Qh3 {[%clk 0:02:32]}
15... f5 {[%clk 0:01:48.7]} 16. g4 {[%clk 0:02:30.3]} 16... g6 {[%clk
0:01:37.6]} 17. gxf5 {[%clk 0:02:19.8]} 17... exf5 {[%clk 0:01:33.2]} 18. Kh1
{[%clk 0:02:19]} 18... Nef6 {[%clk 0:01:26.9]} 19. Rg1 {[%clk 0:02:19.2]} 19...
Nxe5 {[%clk 0:01:12]} 20. fxe5 {[%clk 0:02:20.1]} 20... Ne4 {[%clk 0:01:12.2]}
21. Rg2 {[%clk 0:02:05.5]} 21... f4 {[%clk 0:01:03.9]} 22. Rdg1 {[%clk
0:01:45.1]} 22... Kg7 {[%clk 0:00:48.5]} 23. Nf3 {[%clk 0:01:06]} 23... Bc8
{[%clk 0:00:26.1]} 24. Qh5 {[%clk 0:01:06.3]} 24... Ng3+ {[%clk 0:00:13.3]} 25.
Rxg3 {[%clk 0:01:03]} 25... fxg3 {[%clk 0:00:12.8]} 26. Rxg3 {[%clk 0:01:03.9]}
26... Kh8 {[%clk 0:00:11.1]} 27. Bxg6 {[%clk 0:01:00.6]} 27... Be6 {[%clk
0:00:06]} 28. Bxh7 {[%clk 0:00:58.2]} 28... Qxh7 {[%clk 0:00:05]} 29. Qxh7+
{[%clk 0:00:59.1]} 29... Kxh7 {[%clk 0:00:05.1]} 30. Ng5+ {[%clk 0:01:00]} 30...
Kg6 {[%clk 0:00:05.1]} 31. Nxe6+ {[%clk 0:01:00.8]} 31... Kf5 {[%clk 0:00:05.5]}
32. Nxf8 {[%clk 0:01:01.3]} 32... Ke4 {[%clk 0:00:04.6]} 33. Ne6 {[%clk
0:00:56.4]} 33... Re8 {[%clk 0:00:02.5]} 34. Nf4 {[%clk 0:00:50.9]} 34... cxd4
{[%clk 0:00:02.3]} 35. cxd4 {[%clk 0:00:50.7]} 35... b5 {[%clk 0:00:02.8]} 36.
h4 {[%clk 0:00:50.2]} 36... b4 {[%clk 0:00:03]} 37. h5 {[%clk 0:00:50.5]} 37...
a5 {[%clk 0:00:03.9]} 38. h6 {[%clk 0:00:49.8]} 38... a4 {[%clk 0:00:04.6]} 39.
h7 {[%clk 0:00:49]} 39... Rh8 {[%clk 0:00:04.9]} 40. Rh3 {[%clk 0:00:49]} 40...
b3 {[%clk 0:00:04.8]} 41. axb3 {[%clk 0:00:49.3]} 41... Rf8 {[%clk 0:00:01.1]}
42. bxa4 {[%clk 0:00:45.2]} 1-0

[Event "Early-Titled-Tuesday-Blitz-March-05-2024"]
[Site "Chess.com"]
[Date "2024.03.05"]
[Round "1"]
[White "Nikolakis2014"]
[Black "Balla_Tamas"]
[Result "1-0"]
[WhiteElo "2768"]
[BlackElo "2434"]
[TimeControl "180+1"]
[EndTime "8:07:04 PST"]
[Termination "Nikolakis2014 won on time"]

1. d4 {[%clk 0:03:00.9]} 1... d5 {[%clk 0:02:59.8]} 2. c4 {[%clk 0:02:58.9]}
2... e6 {[%clk 0:02:59.8]} 3. Nf3 {[%clk 0:02:56.3]} 3... c5 {[%clk 0:02:59.5]}
4. cxd5 {[%clk 0:02:55.5]} 4... exd5 {[%clk 0:03:00.4]} 5. g3 {[%clk 0:02:55.4]}
5... Nc6 {[%clk 0:02:57]} 6. Bg2 {[%clk 0:02:55.3]} 6... Nf6 {[%clk 0:02:57.1]}
7. O-O {[%clk 0:02:55.1]} 7... Be6 {[%clk 0:02:57.3]} 8. Nc3 {[%clk 0:02:54.7]}
8... cxd4 {[%clk 0:02:52.3]} 9. Nxd4 {[%clk 0:02:53.8]} 9... Bc5 {[%clk
0:02:52.8]} 10. Be3 {[%clk 0:02:48.8]} 10... Bb6 {[%clk 0:02:40.9]} 11. h3
{[%clk 0:02:19.6]} 11... O-O {[%clk 0:02:38.2]} 12. Na4 {[%clk 0:02:13.5]} 12...
Bxd4 {[%clk 0:01:26.3]} 13. Bxd4 {[%clk 0:02:11.5]} 13... Nxd4 {[%clk 0:01:26]}
14. Qxd4 {[%clk 0:02:11]} 14... b6 {[%clk 0:01:26.4]} 15. Rfd1 {[%clk
0:02:02.9]} 15... Rc8 {[%clk 0:01:23.6]} 16. Nc3 {[%clk 0:01:50.1]} 16... Qe7
{[%clk 0:01:20.1]} 17. e3 {[%clk 0:01:45.4]} 17... Rfd8 {[%clk 0:01:18.1]} 18.
Rac1 {[%clk 0:01:42.3]} 18... h6 {[%clk 0:01:14.8]} 19. Qd2 {[%clk 0:01:40.9]}
19... Qb4 {[%clk 0:01:08.4]} 20. a3 {[%clk 0:01:08.3]} 20... Qb3 {[%clk
0:00:59.3]} 21. Ne2 {[%clk 0:01:08]} 21... Ne4 {[%clk 0:00:41.8]} 22. Bxe4
{[%clk 0:01:02.9]} 22... dxe4 {[%clk 0:00:41.9]} 23. Qxd8+ {[%clk 0:01:01.8]}
23... Rxd8 {[%clk 0:00:41.9]} 24. Rxd8+ {[%clk 0:01:00.8]} 24... Kh7 {[%clk
0:00:42.6]} 25. Rd2 {[%clk 0:00:36.1]} 25... Bxh3 {[%clk 0:00:41.2]} 26. Rc7
{[%clk 0:00:29.2]} 26... Bg4 {[%clk 0:00:35.9]} 27. Nc3 {[%clk 0:00:27.7]} 27...
Bf3 {[%clk 0:00:34.4]} 28. Re7 {[%clk 0:00:26.9]} 28... Qc4 {[%clk 0:00:25.3]}
29. Rdd7 {[%clk 0:00:23.4]} 29... Bh5 {[%clk 0:00:08.4]} 30. Rxe4 {[%clk
0:00:20.6]} 30... Qb3 {[%clk 0:00:07.7]} 31. Rd2 {[%clk 0:00:19.3]} 31... Bg6
{[%clk 0:00:04.5]} 32. Rb4 {[%clk 0:00:18.9]} 1-0